[Event "December 12 Early 2023"]
[Site "https://www.chess.com"]
[Date "2023.12.12"]
[Round "4"]
[White "Devaev, Alexander"]
[Black "Nita, Lucian"]
[Result "1-0"]
[Board "149"]
[TimeControl "180+1"]
[WhiteFideId "4169395"]
[BlackFideId "1206923"]
[WhiteElo "2515"]
[BlackElo "2371"]
[WhiteTeam "RUS"]
[BlackTeam "ROU"]
[WhiteClock "0:00:13"]
[BlackClock "0:00:04"]

1. Nf3 {[%clk 0:02:34]}  d6 {[%clk 0:03:00]} 2. d4 {[%clk 0:02:34]}  Nf6 {[%clk 0:03:00]} 3. c4 {[%clk 0:02:15]}  Nbd7 {[%clk 0:03:01]} 4. Nc3 {[%clk 0:02:15]}  e5 {[%clk 0:03:01]} 5. d5 {[%clk 0:02:15]}  Be7 {[%clk 0:03:00]} 6. e4 {[%clk 0:02:14]}  O-O {[%clk 0:03:01]} 7. h3 {[%clk 0:02:15]}  Nc5 {[%clk 0:03:00]} 8. Qc2 {[%clk 0:02:14]}  a5 {[%clk 0:03:00]} 9. Be2 {[%clk 0:02:13]}  Ne8 {[%clk 0:02:58]} 10. Be3 {[%clk 0:02:13]}  b6 {[%clk 0:02:56]} 11. g4 {[%clk 0:02:11]}  g6 {[%clk 0:02:53]} 12. O-O-O {[%clk 0:02:05]}  f5 {[%clk 0:02:52]} 13. gxf5 {[%clk 0:02:05]}  gxf5 {[%clk 0:02:52]} 14. Rdg1+ {[%clk 0:02:05]}  Kh8 {[%clk 0:02:51]} 15. Nd2 {[%clk 0:01:58]}  f4 {[%clk 0:02:51]} 16. Bxc5 {[%clk 0:01:58]}  bxc5 {[%clk 0:02:51]} 17. Bg4 {[%clk 0:01:59]}  Nf6 {[%clk 0:02:44]} 18. Nf3 {[%clk 0:01:53]}  Nxg4 {[%clk 0:02:42]} 19. hxg4 {[%clk 0:01:53]}  Rg8 {[%clk 0:02:36]} 20. Nh2 {[%clk 0:01:33]}  f3 {[%clk 0:02:18]} 21. Nd1 {[%clk 0:01:22]}  Bg5+ {[%clk 0:02:13]} 22. Kb1 {[%clk 0:01:23]}  Qf6 {[%clk 0:02:12]} 23. Qd3 {[%clk 0:01:21]}  Rf8 {[%clk 0:02:06]} 24. Rg3 {[%clk 0:01:20]}  Qf4 {[%clk 0:01:55]} 25. Ne3 {[%clk 0:01:12]}  Bd7 {[%clk 0:01:38]} 26. Rxf3 {[%clk 0:01:04]}  Qxf3 {[%clk 0:01:38]} 27. Nxf3 {[%clk 0:01:04]}  Rxf3 {[%clk 0:01:38]} 28. Qe2 {[%clk 0:00:58]}  Raf8 {[%clk 0:01:38]} 29. Nf5 {[%clk 0:00:59]}  Rf4 {[%clk 0:01:29]} 30. f3 {[%clk 0:00:59]}  Bxf5 {[%clk 0:01:25]} 31. gxf5 {[%clk 0:00:52]}  Rh4 {[%clk 0:01:20]} 32. Rxh4 {[%clk 0:00:45]}  Bxh4 {[%clk 0:01:20]} 33. Qh2 {[%clk 0:00:46]}  Bg5 {[%clk 0:01:19]} 34. Qh5 {[%clk 0:00:46]}  Bf4 {[%clk 0:01:14]} 35. Kc2 {[%clk 0:00:43]}  Kg7 {[%clk 0:01:14]} 36. Kb3 {[%clk 0:00:34]}  Rb8+ {[%clk 0:01:09]} 37. Kc2 {[%clk 0:00:34]}  Rf8 {[%clk 0:01:08]} 38. b3 {[%clk 0:00:33]}  Be3 {[%clk 0:01:04]} 39. Kb2 {[%clk 0:00:30]}  a4 {[%clk 0:00:56]} 40. bxa4 {[%clk 0:00:26]}  Rb8+ {[%clk 0:00:55]} 41. Kc2 {[%clk 0:00:27]}  Bd4 {[%clk 0:00:53]} 42. Qg5+ {[%clk 0:00:24]}  Kf7 {[%clk 0:00:50]} 43. Qh6 {[%clk 0:00:22]}  Rb2+ {[%clk 0:00:36]} 44. Kd3 {[%clk 0:00:22]}  Rxa2 {[%clk 0:00:35]} 45. Qxh7+ {[%clk 0:00:22]}  Kf8 {[%clk 0:00:34]} 46. f6 {[%clk 0:00:22]}  Ra3+ {[%clk 0:00:34]} 47. Ke2 {[%clk 0:00:21]}  Ra2+ {[%clk 0:00:34]} 48. Kf1 {[%clk 0:00:13]}  Ra1+ {[%clk 0:00:22]} 49. Ke2 {[%clk 0:00:11]}  Ra2+ {[%clk 0:00:21]} 50. Kd1 {[%clk 0:00:11]}  Ra1+ {[%clk 0:00:20]} 51. Kc2 {[%clk 0:00:12]}  Ra2+ {[%clk 0:00:15]} 52. Kb3 {[%clk 0:00:13]}  Rb2+ {[%clk 0:00:04]} 53. Ka3 {[%clk 0:00:13]} 1-0

[Event "December 12 Early 2023"]
[Site "https://www.chess.com"]
[Date "2023.12.12"]
[Round "4"]
[White "Yashmetov, Mikhail"]
[Black "Zaksaite, Salomeja"]
[Result "0-1"]
[Board "150"]
[TimeControl "180+1"]
[WhiteFideId "24198900"]
[BlackFideId "12801496"]
[WhiteElo "2515"]
[BlackElo "2367"]
[WhiteTeam "RUS"]
[BlackTeam "LTU"]
[WhiteClock "0:00:02"]
[BlackClock "0:00:04"]

1. Nf3 {[%clk 0:03:00]}  e6 {[%clk 0:02:56]} 2. b3 {[%clk 0:02:59]}  f5 {[%clk 0:02:55]} 3. Bb2 {[%clk 0:02:59]}  Nf6 {[%clk 0:02:56]} 4. e3 {[%clk 0:02:59]}  b6 {[%clk 0:02:52]} 5. g3 {[%clk 0:02:54]}  Bb7 {[%clk 0:02:52]} 6. Bg2 {[%clk 0:02:54]}  d6 {[%clk 0:02:52]} 7. O-O {[%clk 0:02:54]}  Qe7 {[%clk 0:02:49]} 8. c4 {[%clk 0:02:51]}  Nbd7 {[%clk 0:02:48]} 9. Nc3 {[%clk 0:02:50]}  Rg8 {[%clk 0:02:43]} 10. d4 {[%clk 0:02:39]}  g5 {[%clk 0:02:40]} 11. b4 {[%clk 0:02:32]}  g4 {[%clk 0:02:40]} 12. Nh4 {[%clk 0:02:25]}  Bxg2 {[%clk 0:02:41]} 13. Nxg2 {[%clk 0:02:25]}  h5 {[%clk 0:01:37]} 14. Nb5 {[%clk 0:02:09]}  Kd8 {[%clk 0:01:36]} 15. Rc1 {[%clk 0:02:01]}  a6 {[%clk 0:01:33]} 16. Na3 {[%clk 0:01:47]}  Bh6 {[%clk 0:01:31]} 17. c5 {[%clk 0:01:37]}  h4 {[%clk 0:01:26]} 18. Nxh4 {[%clk 0:01:35]}  Bg5 {[%clk 0:01:26]} 19. cxd6 {[%clk 0:01:31]}  cxd6 {[%clk 0:01:23]} 20. Qc2 {[%clk 0:01:22]}  Bxh4 {[%clk 0:01:21]} 21. Qc7+ {[%clk 0:01:22]}  Ke8 {[%clk 0:01:21]} 22. Nc4 {[%clk 0:01:22]}  Ne4 {[%clk 0:01:13]} 23. Nxb6 {[%clk 0:01:05]}  Nxb6 {[%clk 0:01:03]} 24. Qxb6 {[%clk 0:01:06]}  Ra7 {[%clk 0:00:24]} 25. Rc8+ {[%clk 0:00:42]}  Kf7 {[%clk 0:00:24]} 26. Rfc1 {[%clk 0:00:41]}  Rxc8 {[%clk 0:00:18]} 27. Rxc8 {[%clk 0:00:42]}  Bf6 {[%clk 0:00:14]} 28. Ba3 {[%clk 0:00:28]}  Qb7 {[%clk 0:00:13]} 29. Qxb7+ {[%clk 0:00:13]}  Rxb7 {[%clk 0:00:14]} 30. Ra8 {[%clk 0:00:14]}  Nd2 {[%clk 0:00:03]} 31. Rxa6 {[%clk 0:00:13]}  Nc4 {[%clk 0:00:03]} 32. b5 {[%clk 0:00:06]}  Rxb5 {[%clk 0:00:02]} 33. Bxd6 {[%clk 0:00:03]}  Rb1+ {[%clk 0:00:02]} 34. Kg2 {[%clk 0:00:03]}  Nd2 {[%clk 0:00:02]} 35. Ra7+ {[%clk 0:00:02]}  Kg6 {[%clk 0:00:02]} 36. f4 {[%clk 0:00:02]}  Nf3 {[%clk 0:00:03]} 37. h3 {[%clk 0:00:01]}  Rb2+ {[%clk 0:00:04]} 38. Kf1 {[%clk 0:00:01]}  gxh3 {[%clk 0:00:04]} 39. g4 {[%clk 0:00:01]}  h2 {[%clk 0:00:04]} 40. Ra8 {[%clk 0:00:02]}  h1=Q# {[%clk 0:00:04]} 0-1

[Event "December 12 Early 2023"]
[Site "https://www.chess.com"]
[Date "2023.12.12"]
[Round "4"]
[White "NovakRatko"]
[Black "Dubnevych, Maksym"]
[Result "0-1"]
[Board "151"]
[TimeControl "180+1"]
[BlackFideId "14184001"]
[WhiteElo "2366"]
[BlackElo "2514"]
[BlackTeam "UKR"]
[WhiteClock "0:01:01"]
[BlackClock "0:01:24"]

1. d4 {[%clk 0:02:56]}  d5 {[%clk 0:02:58]} 2. c4 {[%clk 0:02:57]}  e6 {[%clk 0:02:57]} 3. cxd5 {[%clk 0:02:57]}  exd5 {[%clk 0:02:56]} 4. Nc3 {[%clk 0:02:58]}  Nf6 {[%clk 0:02:54]} 5. f3 {[%clk 0:02:57]}  Bb4 {[%clk 0:02:51]} 6. Bg5 {[%clk 0:02:55]}  h6 {[%clk 0:02:50]} 7. Bh4 {[%clk 0:02:55]}  O-O {[%clk 0:02:48]} 8. a3 {[%clk 0:02:54]}  Be7 {[%clk 0:02:47]} 9. e3 {[%clk 0:02:54]}  c6 {[%clk 0:02:47]} 10. Bd3 {[%clk 0:02:54]}  Re8 {[%clk 0:02:43]} 11. Nge2 {[%clk 0:02:54]}  Nbd7 {[%clk 0:02:44]} 12. O-O {[%clk 0:02:53]}  Nf8 {[%clk 0:02:44]} 13. Bf2 {[%clk 0:02:53]}  b6 {[%clk 0:02:39]} 14. Rc1 {[%clk 0:02:53]}  a5 {[%clk 0:02:39]} 15. Ng3 {[%clk 0:02:51]}  Ba6 {[%clk 0:02:39]} 16. Bxa6 {[%clk 0:02:51]}  Rxa6 {[%clk 0:02:39]} 17. Qd3 {[%clk 0:02:52]}  b5 {[%clk 0:02:37]} 18. a4 {[%clk 0:02:50]}  Rb6 {[%clk 0:02:30]} 19. axb5 {[%clk 0:02:50]}  cxb5 {[%clk 0:02:31]} 20. Nxb5 {[%clk 0:02:39]}  Qb8 {[%clk 0:02:29]} 21. Nc3 {[%clk 0:02:34]}  Rxb2 {[%clk 0:02:28]} 22. Rb1 {[%clk 0:02:34]}  Bd6 {[%clk 0:02:23]} 23. e4 {[%clk 0:02:33]}  Bxg3 {[%clk 0:02:21]} 24. Bxg3 {[%clk 0:02:31]}  Qb3 {[%clk 0:02:17]} 25. Rxb2 {[%clk 0:02:29]}  Qxb2 {[%clk 0:02:17]} 26. e5 {[%clk 0:02:20]}  N6d7 {[%clk 0:02:09]} 27. Nxd5 {[%clk 0:02:19]}  Ne6 {[%clk 0:02:09]} 28. Bf2 {[%clk 0:02:13]}  a4 {[%clk 0:02:08]} 29. Rb1 {[%clk 0:02:02]}  Qa2 {[%clk 0:02:07]} 30. Nb4 {[%clk 0:01:55]}  Nf4 {[%clk 0:02:01]} 31. Qe4 {[%clk 0:01:38]}  Qd2 {[%clk 0:01:26]} 32. Be3 {[%clk 0:01:01]}  Qxg2# {[%clk 0:01:24]} 0-1

[Event "December 12 Early 2023"]
[Site "https://www.chess.com"]
[Date "2023.12.12"]
[Round "4"]
[White "Womacka, Mathias"]
[Black "Gutkin, Ilya"]
[Result "1-0"]
[Board "153"]
[TimeControl "180+1"]
[WhiteFideId "4611390"]
[BlackFideId "16203470"]
[WhiteElo "2511"]
[BlackElo "2361"]
[WhiteTeam "GER"]
[BlackTeam "GER"]
[WhiteClock "0:00:11"]
[BlackClock "0:00:00"]

1. e4 {[%clk 0:03:00]}  e5 {[%clk 0:03:00]} 2. Nf3 {[%clk 0:02:59]}  Nc6 {[%clk 0:03:00]} 3. Bb5 {[%clk 0:02:59]}  Nf6 {[%clk 0:03:01]} 4. O-O {[%clk 0:02:58]}  Nxe4 {[%clk 0:03:01]} 5. Re1 {[%clk 0:02:58]}  Nd6 {[%clk 0:03:02]} 6. Nxe5 {[%clk 0:02:57]}  Be7 {[%clk 0:03:00]} 7. Bf1 {[%clk 0:02:55]}  Nxe5 {[%clk 0:02:59]} 8. Rxe5 {[%clk 0:02:55]}  O-O {[%clk 0:02:59]} 9. d4 {[%clk 0:02:56]}  Bf6 {[%clk 0:02:59]} 10. Re1 {[%clk 0:02:56]}  Nf5 {[%clk 0:02:59]} 11. d5 {[%clk 0:02:55]}  d6 {[%clk 0:02:54]} 12. Nd2 {[%clk 0:02:54]}  Re8 {[%clk 0:02:42]} 13. Ne4 {[%clk 0:02:51]}  Be7 {[%clk 0:02:33]} 14. Bf4 {[%clk 0:02:45]}  Bf8 {[%clk 0:02:31]} 15. Qd2 {[%clk 0:02:40]}  Bd7 {[%clk 0:02:24]} 16. a4 {[%clk 0:02:23]}  h6 {[%clk 0:02:13]} 17. a5 {[%clk 0:02:22]}  Nh4 {[%clk 0:02:02]} 18. Qb4 {[%clk 0:02:12]}  Ng6 {[%clk 0:01:34]} 19. Bg3 {[%clk 0:02:07]}  b6 {[%clk 0:01:31]} 20. Bb5 {[%clk 0:01:51]}  Bxb5 {[%clk 0:01:27]} 21. Qxb5 {[%clk 0:01:50]}  bxa5 {[%clk 0:01:18]} 22. Qxa5 {[%clk 0:01:43]}  Qb8 {[%clk 0:01:17]} 23. b3 {[%clk 0:01:37]}  Qb6 {[%clk 0:01:16]} 24. Qc3 {[%clk 0:01:21]}  Ne7 {[%clk 0:01:15]} 25. Qd3 {[%clk 0:01:15]}  Nf5 {[%clk 0:01:06]} 26. Nf6+ {[%clk 0:01:12]}  gxf6 {[%clk 0:01:03]} 27. Qxf5 {[%clk 0:01:12]}  Qb4 {[%clk 0:00:53]} 28. Rxe8 {[%clk 0:01:00]}  Rxe8 {[%clk 0:00:54]} 29. h4 {[%clk 0:00:59]}  Re1+ {[%clk 0:00:22]} 30. Rxe1 {[%clk 0:00:58]}  Qxe1+ {[%clk 0:00:23]} 31. Kh2 {[%clk 0:00:58]}  Qc3 {[%clk 0:00:17]} 32. h5 {[%clk 0:00:49]}  a5 {[%clk 0:00:16]} 33. Bh4 {[%clk 0:00:32]}  Bg7 {[%clk 0:00:12]} 34. Qg4 {[%clk 0:00:27]}  Qe5+ {[%clk 0:00:11]} 35. g3 {[%clk 0:00:19]}  Kh7 {[%clk 0:00:09]} 36. Qf3 {[%clk 0:00:17]}  f5 {[%clk 0:00:09]} 37. Kg2 {[%clk 0:00:17]}  f6 {[%clk 0:00:05]} 38. Qd3 {[%clk 0:00:15]}  Qe4+ {[%clk 0:00:04]} 39. Qxe4 {[%clk 0:00:14]}  fxe4 {[%clk 0:00:04]} 40. g4 {[%clk 0:00:14]}  Kg8 {[%clk 0:00:05]} 41. Kg3 {[%clk 0:00:14]}  f5 {[%clk 0:00:04]} 42. gxf5 {[%clk 0:00:14]}  Be5+ {[%clk 0:00:04]} 43. Kg4 {[%clk 0:00:13]}  Kf7 {[%clk 0:00:03]} 44. Bd8 {[%clk 0:00:13]}  Bd4 {[%clk 0:00:02]} 45. Kf4 {[%clk 0:00:10]}  Bxf2 {[%clk 0:00:00]} 46. Kxe4 {[%clk 0:00:11]} 1-0

[Event "December 12 Early 2023"]
[Site "https://www.chess.com"]
[Date "2023.12.12"]
[Round "4"]
[White "Tulchynskyi, Feliks"]
[Black "Diaz, Fernando"]
[Result "1-0"]
[Board "154"]
[TimeControl "180+1"]
[WhiteFideId "34127895"]
[BlackFideId "3701255"]
[WhiteElo "2507"]
[BlackElo "2358"]
[WhiteTeam "UKR"]
[BlackTeam "PAR"]
[WhiteClock "0:00:05"]
[BlackClock "0:00:02"]

1. c4 {[%clk 0:03:00]}  e5 {[%clk 0:02:18]} 2. Nc3 {[%clk 0:02:59]}  Nc6 {[%clk 0:02:18]} 3. Nf3 {[%clk 0:02:59]}  g6 {[%clk 0:02:18]} 4. g3 {[%clk 0:02:58]}  Bg7 {[%clk 0:02:18]} 5. Bg2 {[%clk 0:02:59]}  d6 {[%clk 0:02:19]} 6. O-O {[%clk 0:02:59]}  Be6 {[%clk 0:02:18]} 7. d3 {[%clk 0:02:57]}  h6 {[%clk 0:02:11]} 8. Rb1 {[%clk 0:02:56]}  Nge7 {[%clk 0:02:11]} 9. b4 {[%clk 0:02:52]}  Qd7 {[%clk 0:02:12]} 10. b5 {[%clk 0:02:50]}  Nd8 {[%clk 0:02:12]} 11. Ne1 {[%clk 0:02:44]}  O-O {[%clk 0:02:11]} 12. Nc2 {[%clk 0:02:40]}  f5 {[%clk 0:02:06]} 13. Nd5 {[%clk 0:02:18]}  c6 {[%clk 0:02:05]} 14. bxc6 {[%clk 0:02:17]}  bxc6 {[%clk 0:02:05]} 15. Nxe7+ {[%clk 0:02:17]}  Qxe7 {[%clk 0:02:06]} 16. f4 {[%clk 0:02:15]}  e4 {[%clk 0:02:03]} 17. Bb2 {[%clk 0:02:05]}  Bxb2 {[%clk 0:02:00]} 18. Rxb2 {[%clk 0:02:06]}  Nf7 {[%clk 0:01:52]} 19. Ne3 {[%clk 0:01:55]}  Rab8 {[%clk 0:01:50]} 20. Qd2 {[%clk 0:01:51]}  exd3 {[%clk 0:01:46]} 21. exd3 {[%clk 0:01:48]}  Qf6 {[%clk 0:01:36]} 22. Rfb1 {[%clk 0:01:43]}  Rxb2 {[%clk 0:01:11]} 23. Qxb2 {[%clk 0:01:42]}  Qxb2 {[%clk 0:01:07]} 24. Rxb2 {[%clk 0:01:43]}  Nd8 {[%clk 0:01:01]} 25. Rb8 {[%clk 0:01:37]}  Bf7 {[%clk 0:00:59]} 26. Ra8 {[%clk 0:01:30]}  Ne6 {[%clk 0:00:55]} 27. Rxa7 {[%clk 0:01:17]}  Nd4 {[%clk 0:00:54]} 28. Rd7 {[%clk 0:01:14]}  Re8 {[%clk 0:00:46]} 29. Rxd6 {[%clk 0:01:05]}  c5 {[%clk 0:00:39]} 30. Kf2 {[%clk 0:01:05]}  Rb8 {[%clk 0:00:36]} 31. Bd5 {[%clk 0:00:59]}  Rb2+ {[%clk 0:00:32]} 32. Kf1 {[%clk 0:00:57]}  Rb1+ {[%clk 0:00:29]} 33. Kg2 {[%clk 0:00:55]}  Rb2+ {[%clk 0:00:29]} 34. Kh3 {[%clk 0:00:40]}  Ne2 {[%clk 0:00:28]} 35. Rxg6+ {[%clk 0:00:35]}  Kh7 {[%clk 0:00:13]} 36. Rxh6+ {[%clk 0:00:15]}  Kxh6 {[%clk 0:00:12]} 37. Nxf5+ {[%clk 0:00:16]}  Kg6 {[%clk 0:00:11]} 38. Nh4+ {[%clk 0:00:15]}  Kf6 {[%clk 0:00:11]} 39. Be4 {[%clk 0:00:13]}  Bh5 {[%clk 0:00:09]} 40. g4 {[%clk 0:00:10]}  Ng1+ {[%clk 0:00:04]} 41. Kg3 {[%clk 0:00:10]}  Be8 {[%clk 0:00:05]} 42. g5+ {[%clk 0:00:10]}  Kg7 {[%clk 0:00:05]} 43. f5 {[%clk 0:00:09]}  Rxa2 {[%clk 0:00:03]} 44. f6+ {[%clk 0:00:09]}  Kf8 {[%clk 0:00:03]} 45. Bd5 {[%clk 0:00:05]}  Ne2+ {[%clk 0:00:03]} 46. Kg4 {[%clk 0:00:04]}  Bd7+ {[%clk 0:00:02]} 47. Kf3 {[%clk 0:00:02]}  Nd4+ {[%clk 0:00:02]} 48. Ke4 {[%clk 0:00:03]}  Re2+ {[%clk 0:00:01]} 49. Kf4 {[%clk 0:00:03]}  Rf2+ {[%clk 0:00:01]} 50. Ke5 {[%clk 0:00:03]}  Rxh2 {[%clk 0:00:02]} 51. g6 {[%clk 0:00:04]}  Rxh4 {[%clk 0:00:02]} 52. g7+ {[%clk 0:00:04]}  Ke8 {[%clk 0:00:02]} 53. g8=Q# {[%clk 0:00:05]} 1-0

[Event "December 12 Early 2023"]
[Site "https://www.chess.com"]
[Date "2023.12.12"]
[Round "4"]
[White "Gavrilov, Maxim"]
[Black "Gallegos Diaz, Carlos Alberto"]
[Result "1-0"]
[Board "155"]
[TimeControl "180+1"]
[WhiteFideId "24271454"]
[BlackFideId "3900886"]
[WhiteElo "2507"]
[BlackElo "2357"]
[WhiteTeam "RUS"]
[BlackTeam "VEN"]
[WhiteClock "0:00:04"]
[BlackClock "0:00:00"]

1. d4 {[%clk 0:03:00]}  d6 {[%clk 0:02:58]} 2. c4 {[%clk 0:03:00]}  e5 {[%clk 0:02:58]} 3. Nf3 {[%clk 0:02:57]}  Nd7 {[%clk 0:02:57]} 4. Nc3 {[%clk 0:02:56]}  Ngf6 {[%clk 0:02:57]} 5. g3 {[%clk 0:02:53]}  Be7 {[%clk 0:02:56]} 6. Bg2 {[%clk 0:02:50]}  O-O {[%clk 0:02:56]} 7. O-O {[%clk 0:02:50]}  c6 {[%clk 0:02:56]} 8. e4 {[%clk 0:02:48]}  exd4 {[%clk 0:02:54]} 9. Nxd4 {[%clk 0:02:47]}  Ne5 {[%clk 0:02:54]} 10. b3 {[%clk 0:02:44]}  Re8 {[%clk 0:02:49]} 11. Bb2 {[%clk 0:02:43]}  Qb6 {[%clk 0:02:44]} 12. h3 {[%clk 0:02:40]}  Nxc4 {[%clk 0:02:29]} 13. Na4 {[%clk 0:02:15]}  Nxb2 {[%clk 0:02:28]} 14. Nxb6 {[%clk 0:02:12]}  Nxd1 {[%clk 0:02:28]} 15. Nxa8 {[%clk 0:02:12]}  Nb2 {[%clk 0:02:27]} 16. Nc7 {[%clk 0:02:06]}  Rd8 {[%clk 0:02:25]} 17. Rab1 {[%clk 0:01:44]}  Nd3 {[%clk 0:02:24]} 18. Rfd1 {[%clk 0:01:42]}  Nc5 {[%clk 0:02:00]} 19. b4 {[%clk 0:01:24]}  Ncxe4 {[%clk 0:01:45]} 20. Re1 {[%clk 0:01:18]}  d5 {[%clk 0:01:31]} 21. f3 {[%clk 0:01:13]}  Nd2 {[%clk 0:00:50]} 22. Rbd1 {[%clk 0:00:10]}  Bxb4 {[%clk 0:00:49]} 23. Re2 {[%clk 0:00:10]}  Nc4 {[%clk 0:00:40]} 24. Kh2 {[%clk 0:00:09]}  Bd6 {[%clk 0:00:34]} 25. Ncb5 {[%clk 0:00:04]}  cxb5 {[%clk 0:00:29]} 26. Nxb5 {[%clk 0:00:05]}  Bc5 {[%clk 0:00:27]} 27. f4 {[%clk 0:00:04]}  Ne3 {[%clk 0:00:22]} 28. Rc1 {[%clk 0:00:03]}  Bb6 {[%clk 0:00:17]} 29. Bf3 {[%clk 0:00:02]}  Bf5 {[%clk 0:00:16]} 30. Nc3 {[%clk 0:00:02]}  d4 {[%clk 0:00:14]} 31. Na4 {[%clk 0:00:03]}  d3 {[%clk 0:00:12]} 32. Rd2 {[%clk 0:00:02]}  Ne4 {[%clk 0:00:10]} 33. Bxe4 {[%clk 0:00:01]}  Bxe4 {[%clk 0:00:10]} 34. Nxb6 {[%clk 0:00:02]}  axb6 {[%clk 0:00:09]} 35. Re1 {[%clk 0:00:03]}  Nc4 {[%clk 0:00:08]} 36. Rdd1 {[%clk 0:00:03]}  f5 {[%clk 0:00:04]} 37. g4 {[%clk 0:00:03]}  d2 {[%clk 0:00:03]} 38. Re2 {[%clk 0:00:03]}  Bf3 {[%clk 0:00:02]} 39. Rexd2 {[%clk 0:00:01]}  Rxd2+ {[%clk 0:00:01]} 40. Rxd2 {[%clk 0:00:02]}  Nxd2 {[%clk 0:00:01]} 41. Kg3 {[%clk 0:00:03]}  Bxg4 {[%clk 0:00:00]} 42. Kh4 {[%clk 0:00:04]} 1-0

[Event "December 12 Early 2023"]
[Site "https://www.chess.com"]
[Date "2023.12.12"]
[Round "4"]
[White "Andrews, Todd"]
[Black "Silvestre, Christian"]
[Result "0-1"]
[Board "159"]
[TimeControl "180+1"]
[WhiteFideId "2012456"]
[BlackFideId "30956269"]
[WhiteElo "2506"]
[BlackElo "2321"]
[WhiteTeam "USA"]
[BlackTeam "USA"]
[WhiteClock "0:00:13"]
[BlackClock "0:00:16"]

1. d4 {[%clk 0:03:00]}  e5 {[%clk 0:02:58]} 2. dxe5 {[%clk 0:03:00]}  Nc6 {[%clk 0:02:56]} 3. e4 {[%clk 0:02:56]}  Nxe5 {[%clk 0:02:55]} 4. f4 {[%clk 0:02:56]}  Nc6 {[%clk 0:02:53]} 5. Nf3 {[%clk 0:02:56]}  Bc5 {[%clk 0:02:53]} 6. Bc4 {[%clk 0:02:55]}  d6 {[%clk 0:02:51]} 7. Qe2 {[%clk 0:02:54]}  Qe7 {[%clk 0:02:48]} 8. Nc3 {[%clk 0:02:52]}  Bg4 {[%clk 0:02:42]} 9. Nd5 {[%clk 0:02:50]}  Qd7 {[%clk 0:02:40]} 10. Be3 {[%clk 0:02:46]}  Nd4 {[%clk 0:02:24]} 11. Bxd4 {[%clk 0:02:42]}  Bxd4 {[%clk 0:02:25]} 12. O-O-O {[%clk 0:02:41]}  Bc5 {[%clk 0:02:03]} 13. e5 {[%clk 0:02:33]}  O-O-O {[%clk 0:01:54]} 14. h3 {[%clk 0:02:20]}  Be6 {[%clk 0:01:41]} 15. Kb1 {[%clk 0:02:12]}  Ne7 {[%clk 0:01:29]} 16. Rhe1 {[%clk 0:01:49]}  Nxd5 {[%clk 0:01:22]} 17. Bxd5 {[%clk 0:01:49]}  Bxd5 {[%clk 0:01:22]} 18. Rxd5 {[%clk 0:01:49]}  Qc6 {[%clk 0:01:12]} 19. Qc4 {[%clk 0:01:30]}  Bf2 {[%clk 0:00:58]} 20. Re4 {[%clk 0:01:21]}  dxe5 {[%clk 0:00:36]} 21. Rxd8+ {[%clk 0:01:04]}  Rxd8 {[%clk 0:00:34]} 22. a4 {[%clk 0:00:59]}  Qxc4 {[%clk 0:00:30]} 23. Rxc4 {[%clk 0:01:00]}  exf4 {[%clk 0:00:30]} 24. Rxf4 {[%clk 0:01:00]}  f6 {[%clk 0:00:30]} 25. Re4 {[%clk 0:00:55]}  Bc5 {[%clk 0:00:29]} 26. c3 {[%clk 0:00:52]}  Bd6 {[%clk 0:00:29]} 27. Kc2 {[%clk 0:00:52]}  Kd7 {[%clk 0:00:30]} 28. Nd4 {[%clk 0:00:51]}  Re8 {[%clk 0:00:30]} 29. Rg4 {[%clk 0:00:46]}  g6 {[%clk 0:00:29]} 30. Kd3 {[%clk 0:00:40]}  f5 {[%clk 0:00:28]} 31. Rh4 {[%clk 0:00:38]}  h5 {[%clk 0:00:26]} 32. Nf3 {[%clk 0:00:28]}  a5 {[%clk 0:00:21]} 33. Rd4 {[%clk 0:00:27]}  Kc6 {[%clk 0:00:19]} 34. Nh4 {[%clk 0:00:26]}  Re6 {[%clk 0:00:18]} 35. Rc4+ {[%clk 0:00:24]}  Kd7 {[%clk 0:00:18]} 36. g4 {[%clk 0:00:23]}  fxg4 {[%clk 0:00:17]} 37. hxg4 {[%clk 0:00:24]}  hxg4 {[%clk 0:00:17]} 38. Rxg4 {[%clk 0:00:24]}  g5 {[%clk 0:00:14]} 39. Rxg5 {[%clk 0:00:23]}  Be7 {[%clk 0:00:15]} 40. Rg7 {[%clk 0:00:22]}  Kc6 {[%clk 0:00:15]} 41. Nf5 {[%clk 0:00:21]}  Bd6 {[%clk 0:00:13]} 42. Nd4+ {[%clk 0:00:21]}  Kd5 {[%clk 0:00:12]} 43. Nxe6 {[%clk 0:00:22]}  Kxe6 {[%clk 0:00:13]} 44. Rg8 {[%clk 0:00:22]}  Kd5 {[%clk 0:00:13]} 45. Ra8 {[%clk 0:00:22]}  b6 {[%clk 0:00:13]} 46. c4+ {[%clk 0:00:22]}  Kc6 {[%clk 0:00:14]} 47. b3 {[%clk 0:00:21]}  Kb7 {[%clk 0:00:15]} 48. Kd4 {[%clk 0:00:21]}  Kxa8 {[%clk 0:00:13]} 49. Kd5 {[%clk 0:00:22]}  Kb7 {[%clk 0:00:14]} 50. Kd4 {[%clk 0:00:21]}  Bb4 {[%clk 0:00:14]} 51. Kd5 {[%clk 0:00:21]}  Kc8 {[%clk 0:00:14]} 52. Kc6 {[%clk 0:00:21]}  Kd8 {[%clk 0:00:15]} 53. Kb7 {[%clk 0:00:20]}  Kd7 {[%clk 0:00:15]} 54. Kb8 {[%clk 0:00:20]}  Kd6 {[%clk 0:00:15]} 55. Kb7 {[%clk 0:00:21]}  Bc5 {[%clk 0:00:15]} 56. Kc8 {[%clk 0:00:20]}  Ke5 {[%clk 0:00:15]} 57. Kxc7 {[%clk 0:00:20]}  Kd4 {[%clk 0:00:16]} 58. Kc6 {[%clk 0:00:20]}  Kc3 {[%clk 0:00:16]} 59. Kb5 {[%clk 0:00:19]}  Kxb3 {[%clk 0:00:16]} 60. Kc6 {[%clk 0:00:13]}  Kxa4 {[%clk 0:00:16]} 0-1

[Event "December 12 Early 2023"]
[Site "https://www.chess.com"]
[Date "2023.12.12"]
[Round "4"]
[White "Grutter, Tim"]
[Black "Tarasova, Viktoriya"]
[Result "1-0"]
[Board "162"]
[TimeControl "180+1"]
[WhiteFideId "1057472"]
[BlackFideId "4175840"]
[WhiteElo "2503"]
[BlackElo "2314"]
[WhiteTeam "NED"]
[BlackTeam "RUS"]
[WhiteClock "0:00:43"]
[BlackClock "0:00:00"]

1. e4 {[%clk 0:03:00]}  e5 {[%clk 0:02:59]} 2. Nc3 {[%clk 0:03:00]}  Nf6 {[%clk 0:02:59]} 3. d4 {[%clk 0:02:54]}  exd4 {[%clk 0:02:48]} 4. Qxd4 {[%clk 0:02:55]}  Nc6 {[%clk 0:02:48]} 5. Qd3 {[%clk 0:02:55]}  Bb4 {[%clk 0:02:47]} 6. Bd2 {[%clk 0:02:50]}  O-O {[%clk 0:02:47]} 7. O-O-O {[%clk 0:02:50]}  Re8 {[%clk 0:02:47]} 8. f3 {[%clk 0:02:47]}  d6 {[%clk 0:02:46]} 9. a3 {[%clk 0:02:44]}  Ba5 {[%clk 0:02:37]} 10. g4 {[%clk 0:02:41]}  Ne5 {[%clk 0:02:18]} 11. Qb5 {[%clk 0:02:33]}  Bb6 {[%clk 0:02:10]} 12. Bg2 {[%clk 0:02:26]}  Be6 {[%clk 0:02:01]} 13. Qe2 {[%clk 0:02:25]}  Nc4 {[%clk 0:01:43]} 14. Kb1 {[%clk 0:02:23]}  Nxd2+ {[%clk 0:01:40]} 15. Rxd2 {[%clk 0:02:23]}  c6 {[%clk 0:01:37]} 16. Qd1 {[%clk 0:02:15]}  Ba5 {[%clk 0:00:57]} 17. Nge2 {[%clk 0:02:05]}  d5 {[%clk 0:00:50]} 18. g5 {[%clk 0:02:00]}  Nd7 {[%clk 0:00:50]} 19. f4 {[%clk 0:01:47]}  dxe4 {[%clk 0:00:21]} 20. Bxe4 {[%clk 0:01:46]}  f5 {[%clk 0:00:21]} 21. gxf6 {[%clk 0:01:43]}  Qxf6 {[%clk 0:00:21]} 22. Rxd7 {[%clk 0:01:30]}  Bxd7 {[%clk 0:00:20]} 23. Qxd7 {[%clk 0:01:31]}  Rad8 {[%clk 0:00:16]} 24. Qxb7 {[%clk 0:01:29]}  Rb8 {[%clk 0:00:15]} 25. Qxc6 {[%clk 0:01:29]}  Bxc3 {[%clk 0:00:11]} 26. Nxc3 {[%clk 0:01:27]}  Qxf4 {[%clk 0:00:09]} 27. Re1 {[%clk 0:01:01]}  Kh8 {[%clk 0:00:07]} 28. Rd1 {[%clk 0:00:52]}  Qxh2 {[%clk 0:00:07]} 29. Rh1 {[%clk 0:00:49]}  Qe5 {[%clk 0:00:03]} 30. Rxh7+ {[%clk 0:00:47]}  Kg8 {[%clk 0:00:03]} 31. Qc4+ {[%clk 0:00:47]}  Kf8 {[%clk 0:00:02]} 32. Rh8+ {[%clk 0:00:44]}  Ke7 {[%clk 0:00:03]} 33. Nd5+ {[%clk 0:00:44]}  Kd6 {[%clk 0:00:00]} 34. Qc7+ {[%clk 0:00:43]} 1-0